bitfinex/quotes_BTCUSD_20250119
["timestamp","ask_amount","ask_price","bid_price","bid_amount"]
[1737283321860,0.0004879,104790.0,104780.0,0.095438]
[1737283322079,0.0004879,104790.0,104780.0,0.84873226]
[1737283322277,0.0004879,104790.0,104780.0,0.88092171]
[1737283322918,9e-07,104790.0,104780.0,0.88760171]
[1737283323331,9e-07,104790.0,104780.0,0.81700038]
[1737283323505,9e-07,104790.0,104780.0,0.90313594]
[1737283323706,9e-07,104790.0,104780.0,0.95303594]
[1737283325205,9e-07,104790.0,104780.0,1.01046594]
[1737283325403,9e-07,104790.0,104780.0,1.22400205]
[1737283325644,9e-07,104790.0,104780.0,1.24251682]
[1737283326327,9e-07,104790.0,104780.0,1.11439515]
[1737283326858,0.0160006,104820.0,104810.0,0.38152639]
[1737283327166,0.01649836,104820.0,104810.0,0.73649513]
[1737283327529,0.01649836,104820.0,104810.0,0.84771475]
[1737283327929,0.01649836,104820.0,104810.0,0.73649513]
[1737283328138,0.01649836,104820.0,104810.0,0.88649513]
[1737283328479,0.01649836,104820.0,104810.0,0.74246994]
[1737283328621,0.01649836,104820.0,104810.0,0.89246994]
[1737283329708,0.01649836,104820.0,104810.0,0.86459542]
[1737283330326,0.01649836,104820.0,104810.0,0.82581504]
[1737283331892,0.01649836,104820.0,104810.0,0.61909732]
[1737283332092,0.01649836,104820.0,104810.0,0.74381504]
[1737283332750,0.01649836,104820.0,104810.0,0.76254592]
[1737283333264,3.6e-07,104820.0,104810.0,0.76254592]
[1737283333477,3.6e-07,104820.0,104810.0,0.87393107]
[1737283333615,3.6e-07,104820.0,104810.0,0.81309185]
[1737283333987,3.6e-07,104820.0,104810.0,0.88369318]
[1737283334177,3.6e-07,104820.0,104810.0,0.89323966]
[1737283335630,3.6e-07,104820.0,104810.0,0.88369318]
[1737283335843,3.6e-07,104820.0,104810.0,0.73369318]
[1737283336054,3.6e-07,104820.0,104810.0,0.94733842]
[1737283336266,3.6e-07,104820.0,104810.0,0.94065842]
[1737283336400,3.6e-07,104820.0,104810.0,0.48230164]
[1737283336813,3.6e-07,104820.0,104810.0,0.47562164]
[1737283337072,0.00429446,104820.0,104810.0,0.47562164]
[1737283337260,0.00429446,104820.0,104810.0,0.22911861]
[1737283337439,0.00429446,104820.0,104810.0,0.29971994]
[1737283337641,0.00429446,104820.0,104810.0,0.32271994]
[1737283338046,0.00429446,104820.0,104810.0,0.47271994]
[1737283338454,0.00429446,104820.0,104810.0,0.48226652]
[1737283339313,0.00429446,104820.0,104810.0,0.47271994]
[1737283339675,0.00429446,104820.0,104810.0,0.40211861]
[1737283341827,0.05019446,104820.0,104810.0,5.15798694]
[1737283341948,0.00429446,104820.0,104810.0,0.47271994]
[1737283342159,3.6e-07,104820.0,104810.0,0.4822681]
[1737283342363,0.00429244,104820.0,104810.0,0.4822681]
[1737283342602,0.00429244,104820.0,104810.0,0.48316522]
[1737283342806,0.00471964,104820.0,104810.0,0.54059522]
[1737283343007,0.00471964,104820.0,104810.0,0.70471547]
[1737283343363,5.6e-07,104820.0,104810.0,0.85471547]
[1737283343580,0.0004274,104840.0,104830.0,0.37993839]
[1737283343946,0.00057663,104840.0,104830.0,0.76192649]
[1737283344144,6.3e-07,104840.0,104830.0,0.83252782]
[1737283344294,6.3e-07,104840.0,104830.0,0.98252782]
[1737283344506,6.3e-07,104840.0,104830.0,0.84132516]
[1737283344706,6.3e-07,104840.0,104830.0,1.03022782]
[1737283344906,6.3e-07,104840.0,104830.0,1.0657361]
[1737283345196,6.3e-07,104840.0,104830.0,1.07670604]
[1737283345617,0.0004274,104880.0,104860.0,0.26154639]
[1737283345882,0.00057652,104880.0,104870.0,0.44325533]
[1737283346012,0.00057652,104880.0,104870.0,0.442302]
[1737283346408,0.00057652,104880.0,104870.0,0.44827681]
[1737283347618,0.00057652,104880.0,104870.0,0.5023932]
[1737283347823,0.00057652,104880.0,104870.0,0.47528934]
[1737283348059,0.00057652,104880.0,104870.0,0.48192934]
[1737283348914,0.00057652,104880.0,104870.0,0.66131449]
[1737283349539,0.00057652,104880.0,104870.0,0.69941749]
[1737283349744,5.2e-07,104880.0,104870.0,0.69941749]
[1737283350401,0.00034025,104900.0,104880.0,0.05411639]
[1737283350615,0.00034025,104900.0,104890.0,0.34553091]
[1737283350785,0.00034025,104900.0,104890.0,0.34457781]
[1737283350991,0.00034025,104900.0,104890.0,0.19457781]
[1737283352566,0.00034025,104900.0,104890.0,0.20055262]
[1737283353238,0.12726969,104910.0,104900.0,0.095328]
[1737283353464,0.08138608,104910.0,104900.0,0.19456881]
[1737283353882,0.08138608,104910.0,104900.0,0.20054362]
[1737283355200,0.24730641,104910.0,104900.0,0.20054362]
[1737283355334,0.24730641,104910.0,104900.0,0.00597481]
[1737283355822,0.29320641,104910.0,104900.0,0.00597481]
[1737283356276,0.12728608,104910.0,104900.0,0.10130281]
[1737283356475,0.19788741,104910.0,104900.0,0.10130281]
[1737283357040,0.17316969,104910.0,104900.0,0.20054362]
[1737283360231,0.12728608,104910.0,104900.0,0.20054362]
[1737283360446,0.12798361,104920.0,104900.0,0.10521562]
[1737283360662,0.12798361,104920.0,104910.0,0.19455981]
[1737283362211,0.19858494,104920.0,104910.0,0.20052274]
[1737283362965,0.12798361,104920.0,104910.0,0.20052274]
[1737283363180,0.15270133,104920.0,104910.0,0.20052274]
[1737283363353,0.24801133,104920.0,104910.0,0.10128193]
[1737283363719,0.24801133,104920.0,104910.0,0.00596293]
[1737283363962,0.24801133,104920.0,104910.0,0.10128193]
[1737283364138,0.24701133,104920.0,104910.0,0.10128193]
[1737283365058,0.24701133,104920.0,104910.0,0.095319]
[1737283365286,0.04588361,104910.0,104900.0,0.29192593]
[1737283365492,0.11648494,104910.0,104900.0,0.39116674]
[1737283365697,0.04588361,104910.0,104900.0,0.39116674]
[1737283366301,0.16592033,104910.0,104900.0,0.10128893]
[1737283367982,0.16592033,104910.0,104900.0,0.39117774]
[1737283367983,0.04588361,104910.0,104900.0,0.39117774]
[1737283368805,0.12741041,104920.0,104910.0,0.095319]
[1737283369152,0.04631041,104920.0,104910.0,0.19455981]
[1737283369503,0.11691174,104920.0,104910.0,0.19455981]
[1737283369705,0.04588361,104910.0,104900.0,0.29193293]
[1737283369905,0.04588361,104910.0,104900.0,0.54117374]
[1737283370236,0.04588361,104910.0,104900.0,0.53521081]
[1737283370453,0.04588361,104910.0,104900.0,0.38521081]
[1737283371025,0.12841041,104920.0,104910.0,0.095319]
[1737283371192,0.24843813,104920.0,104910.0,0.19455981]
[1737283371597,0.15312813,104920.0,104910.0,0.19455981]
[1737283372545,0.15312813,104920.0,104910.0,0.20052299]
[1737283373906,0.24843813,104920.0,104910.0,0.20052299]
[1737283374254,0.15312813,104920.0,104910.0,0.20052299]
[1737283374452,0.31903946,104920.0,104910.0,0.00596318]
[1737283374655,0.41903946,104920.0,104910.0,0.00596318]
[1737283374896,0.34843813,104920.0,104910.0,0.00596318]
[1737283375091,0.41903946,104920.0,104910.0,0.00596318]
[1737283375241,0.56903946,104920.0,104910.0,0.00596318]
[1737283375666,0.57382538,104920.0,104910.0,0.00596318]
[1737283376094,0.62302538,104920.0,104910.0,0.00596318]
[1737283376518,0.72226619,104920.0,104910.0,0.00596318]
[1737283376728,0.285962,104910.0,104890.0,0.28689428]
[1737283376957,0.00473454,104900.0,104890.0,0.38613609]
[1737283377307,0.07533587,104900.0,104890.0,0.38613609]
[1737283378126,0.25276387,104900.0,104890.0,0.10219252]
[1737283378328,0.28276387,104900.0,104890.0,0.10219252]
[1737283378453,0.25276387,104900.0,104890.0,0.00686052]
[1737283379142,0.30196387,104900.0,104890.0,0.10219752]
[1737283380265,0.30196387,104900.0,104890.0,0.00686052]
[1737283380718,0.31166856,104900.0,104890.0,0.00686052]
[1737283381242,0.21634056,104900.0,104890.0,0.10219752]
[1737283381593,0.31166856,104900.0,104890.0,0.10219752]
[1737283381743,0.21634056,104900.0,104890.0,0.10219752]
[1737283381940,0.31166856,104900.0,104890.0,0.10219752]
[1737283382277,0.21634056,104900.0,104890.0,0.10219752]
[1737283382996,0.08504056,104900.0,104890.0,0.20143833]
[1737283383413,0.07533587,104900.0,104890.0,0.20143833]
[1737283383764,0.00473454,104900.0,104890.0,0.20143833]
[1737283384161,0.05061815,104900.0,104890.0,0.20143833]
[1737283384847,0.00473454,104900.0,104890.0,0.20143833]
[1737283384974,0.00473454,104900.0,104890.0,0.35239162]
[1737283385339,0.00473454,104900.0,104890.0,0.43243833]
[1737283387228,0.00473454,104900.0,104890.0,0.44210328]
[1737283390138,0.00473454,104900.0,104890.0,0.54645506]
[1737283390373,0.00473454,104900.0,104890.0,0.64005639]
[1737283390533,0.00010989,104910.0,104900.0,0.023]
[1737283390737,0.00010989,104910.0,104900.0,0.21852181]
[1737283390936,0.00010989,104910.0,104900.0,0.37480075]
[1737283391501,0.00010989,104910.0,104900.0,0.38076499]
[1737283392722,0.00010989,104910.0,104900.0,0.89405775]
[1737283393087,0.00010989,104910.0,104900.0,0.92210861]
[1737283393511,0.00010989,104910.0,104900.0,0.79368493]
[1737283394063,0.00010989,104910.0,104900.0,0.86428626]
[1737283394569,0.00010989,104910.0,104900.0,1.06840265]
[1737283394791,0.00010989,104910.0,104900.0,1.09272272]
[1737283395627,0.00010989,104910.0,104900.0,1.24272272]
[1737283395831,0.00010989,104910.0,104900.0,1.30015272]
[1737283396256,8.9e-07,104910.0,104900.0,1.30015272]
[1737283397174,8.9e-07,104910.0,104900.0,0.898505]
[1737283397380,8.9e-07,104910.0,104900.0,1.10751046]
[1737283397576,8.9e-07,104910.0,104900.0,1.20111179]
[1737283397800,8.9e-07,104910.0,104900.0,1.27566265]
[1737283398336,8.9e-07,104910.0,104900.0,1.14784859]
[1737283398552,8.9e-07,104910.0,104900.0,1.15448859]
[1737283398970,8.9e-07,104910.0,104900.0,0.89743357]
[1737283400142,8.9e-07,104910.0,104900.0,0.68667718]
[1737283400308,8.9e-07,104910.0,104900.0,0.90326315]
[1737283400508,8.9e-07,104910.0,104900.0,0.64514543]
[1737283401139,8.9e-07,104910.0,104900.0,0.81598143]
[1737283401727,8.9e-07,104910.0,104900.0,0.58498143]
[1737283402076,0.0458845,104910.0,104900.0,0.58498143]
[1737283402285,0.0458845,104910.0,104900.0,0.20053305]
[1737283402665,8.9e-07,104910.0,104900.0,0.10520505]
[1737283403049,0.09531989,104910.0,104900.0,0.10520505]
[1737283403299,0.16592122,104910.0,104900.0,0.10520505]
[1737283403516,0.16592122,104910.0,104900.0,0.00596424]
[1737283403717,0.07060222,104910.0,104890.0,0.48353552]
[1737283403922,0.16592222,104910.0,104890.0,0.58277633]
[1737283404935,0.16592222,104910.0,104890.0,0.39210633]
[1737283405112,0.24742933,104900.0,104890.0,0.10013709]
[1737283405436,0.15210133,104900.0,104890.0,0.19547409]
[1737283405574,0.15210133,104900.0,104890.0,0.10013709]
[1737283405779,0.15210133,104900.0,104890.0,0.19547409]
[1737283406195,0.15210133,104900.0,104890.0,0.10013709]
[1737283406403,0.15210133,104900.0,104890.0,0.19547409]
[1737283406599,0.15210133,104900.0,104890.0,0.10013709]
[1737283406600,0.24742933,104900.0,104890.0,0.10013709]
[1737283407409,0.29562933,104900.0,104890.0,0.00089628]
[1737283408081,0.20030133,104900.0,104890.0,0.00089628]
[1737283408286,0.29562933,104900.0,104890.0,0.00089628]
[1737283408461,0.20030133,104900.0,104890.0,0.09623328]
[1737283408890,0.29562933,104900.0,104890.0,0.00089628]
[1737283410378,0.20030133,104900.0,104890.0,0.00089628]
[1737283410620,0.29562933,104900.0,104890.0,0.00089628]
[1737283410867,0.20030133,104900.0,104890.0,0.09623328]
[1737283411132,0.29562933,104900.0,104890.0,0.00089628]
[1737283411309,0.03967327,104910.0,104890.0,0.10013709]
[1737283411528,0.03967327,104910.0,104900.0,0.095328]
[1737283411728,0.03000089,104910.0,104900.0,0.19456881]
[1737283414201,0.02873788,104910.0,104900.0,0.19456881]
[1737283415366,0.07462149,104910.0,104900.0,0.34642059]
[1737283415663,0.0004279,104910.0,104900.0,0.3454674]
[1737283415865,0.0004279,104910.0,104900.0,0.39660239]
[1737283416461,0.0004279,104910.0,104900.0,0.37443172]
[1737283419293,0.0004279,104910.0,104900.0,0.61843835]
[1737283419941,0.0004279,104910.0,104900.0,0.54783702]
[1737283420117,0.0004279,104910.0,104900.0,0.45243172]
[1737283420689,0.0004279,104910.0,104900.0,0.46172765]
[1737283422635,0.0004279,104910.0,104900.0,0.48062983]
[1737283423230,0.0004279,104910.0,104900.0,0.5794068]
[1737283423415,0.0004279,104910.0,104900.0,0.50880547]
[1737283424337,0.0004279,104910.0,104900.0,0.5794068]
[1737283424883,0.0004279,104910.0,104900.0,0.79298923]
[1737283426543,0.0004279,104910.0,104900.0,0.69421226]
[1737283427425,0.0004279,104910.0,104900.0,0.76481359]
[1737283427706,0.01649707,104930.0,104910.0,0.444734]
[1737283427844,0.01649707,104930.0,104920.0,0.21755081]
[1737283428604,0.01649707,104930.0,104920.0,0.28815214]
[1737283428959,0.01649707,104930.0,104920.0,0.65104417]
[1737283429403,0.01649707,104930.0,104920.0,0.73647714]
[1737283429582,0.01649707,104930.0,104920.0,0.74244146]
[1737283430590,0.01649707,104930.0,104920.0,1.25506925]
[1737283430990,0.01649707,104930.0,104920.0,1.26464502]
[1737283431591,0.01649707,104930.0,104920.0,1.05103264]
[1737283432447,0.01649707,104930.0,104920.0,0.96559967]
[1737283432647,0.01649707,104930.0,104920.0,1.17921205]
[1737283433054,7e-08,104930.0,104920.0,1.17921205]
[1737283433267,7e-08,104930.0,104920.0,0.96559967]
[1737283433471,7e-08,104930.0,104920.0,0.98444623]
[1737283434168,7e-08,104930.0,104920.0,1.06972647]
[1737283434594,7e-08,104930.0,104920.0,0.91683311]
[1737283435354,7e-08,104930.0,104920.0,0.86733311]
[1737283435560,7e-08,104930.0,104920.0,0.76323311]
[1737283435753,7e-08,104930.0,104920.0,0.78623311]
[1737283436139,7e-08,104930.0,104920.0,0.78026879]
[1737283436352,7e-08,104930.0,104920.0,0.39597314]
[1737283437554,7e-08,104930.0,104920.0,0.49475011]
[1737283437722,7e-08,104930.0,104920.0,0.42414878]
[1737283438528,7e-08,104930.0,104920.0,0.70817981]
[1737283439171,7e-08,104930.0,104920.0,0.58003035]
[1737283440132,0.00042797,104930.0,104920.0,0.50942902]
[1737283440332,0.00042797,104930.0,104920.0,0.63414674]
[1737283440747,0.00042797,104930.0,104920.0,0.76310722]
[1737283441340,0.00042797,104930.0,104920.0,0.89125668]
[1737283442493,0.00042797,104930.0,104920.0,0.76310722]
[1737283445008,0.00042797,104930.0,104920.0,0.75714674]
[1737283445870,9.7e-07,104930.0,104920.0,0.84402576]
[1737283446085,9.7e-07,104930.0,104920.0,0.99402576]
[1737283447440,9.7e-07,104930.0,104920.0,1.50665355]
[1737283447646,9.7e-07,104930.0,104920.0,0.95150019]
[1737283447857,9.7e-07,104930.0,104920.0,0.826841]
[1737283448211,9.7e-07,104930.0,104920.0,0.63622862]
[1737283448745,9.7e-07,104930.0,104920.0,0.85682995]
[1737283449778,9.7e-07,104930.0,104920.0,0.4725343]
[1737283450285,9.7e-07,104930.0,104920.0,0.50220397]
[1737283451044,9.7e-07,104930.0,104920.0,0.40860264]
[1737283451251,0.12338458,104930.0,104920.0,0.2193572]
[1737283451692,0.12338458,104930.0,104920.0,0.22025579]
[1737283451889,0.12338458,104930.0,104920.0,0.36429596]
[1737283452093,0.12740097,104930.0,104920.0,0.21429596]
[1737283452297,0.12740097,104930.0,104920.0,0.1954494]
[1737283452495,0.12740097,104930.0,104920.0,0.3454494]
[1737283453415,0.12740097,104930.0,104920.0,0.1954494]
[1737283453984,0.22270197,104930.0,104920.0,0.1954494]
[1737283454343,0.3933033,104930.0,104920.0,0.00089859]
[1737283454741,0.3933033,104930.0,104890.0,0.14530084]
[1737283454742,0.07869041,104900.0,104890.0,0.14530084]
[1737283454988,0.20609041,104900.0,104890.0,0.2040116]
[1737283455183,0.20609041,104900.0,104890.0,0.3946756]
[1737283455448,0.1602068,104900.0,104890.0,0.41368972]
[1737283455613,0.1602068,104900.0,104890.0,0.48429105]
[1737283456258,0.0827068,104900.0,104890.0,0.50729105]
[1737283456457,0.12859041,104900.0,104890.0,0.50729105]
[1737283456649,0.0827068,104900.0,104890.0,0.50729105]
[1737283456811,0.0827068,104900.0,104890.0,0.65729105]
[1737283457460,0.0827068,104900.0,104890.0,0.59265314]
[1737283457778,0.1602068,104900.0,104890.0,0.59265314]
[1737283458082,0.1602068,104900.0,104890.0,0.66325447]
[1737283458840,0.1602068,104900.0,104890.0,0.65729105]
[1737283459345,0.1602068,104900.0,104890.0,0.64785726]
[1737283460122,0.1274,104900.0,104890.0,0.61504713]
[1737283461152,0.17328361,104900.0,104890.0,0.61504713]
[1737283461350,0.04588361,104900.0,104890.0,0.61504713]
[1737283462790,0.04588361,104910.0,104900.0,0.118328]
[1737283462968,0.17328361,104920.0,104910.0,0.245319]
[1737283463171,0.17328361,104920.0,104910.0,0.43816114]
[1737283464262,0.17328361,104920.0,104910.0,0.43851695]
[1737283465667,0.17328361,104920.0,104910.0,0.44447987]
[1737283468160,0.17328361,104920.0,104910.0,0.37387854]
[1737283468304,0.17328361,104920.0,104910.0,0.44447987]
[1737283468513,0.17328361,104920.0,104910.0,0.43851695]
[1737283471820,0.04588458,104930.0,104920.0,0.023]
[1737283472029,9.7e-07,104930.0,104920.0,0.43910513]
[1737283472251,0.04588458,104930.0,104920.0,0.43815214]
[1737283473718,9.7e-07,104930.0,104920.0,0.43815214]
[1737283473927,9.7e-07,104930.0,104920.0,0.60412697]
[1737283474519,9.7e-07,104930.0,104920.0,0.73132697]
[1737283475096,9.7e-07,104930.0,104920.0,0.75081586]
[1737283475303,9.7e-07,104930.0,104920.0,0.78044741]
[1737283475511,9.7e-07,104930.0,104920.0,0.75081586]
[1737283475904,9.7e-07,104930.0,104920.0,1.13520399]
[1737283476496,9.7e-07,104930.0,104920.0,1.14116576]
[1737283476898,9.7e-07,104930.0,104920.0,0.97029981]
[1737283478030,9.7e-07,104930.0,104920.0,0.84215035]
[1737283479188,9.7e-07,104930.0,104920.0,0.97029981]
[1737283479800,9.7e-07,104930.0,104920.0,0.72604902]
[1737283480292,0.04588458,104930.0,104920.0,0.30537419]
[1737283480417,0.04588458,104930.0,104920.0,0.35648663]
[1737283480624,0.04588458,104930.0,104920.0,0.2858853]
[1737283480843,9.7e-07,104930.0,104920.0,0.20051258]
[1737283482195,9.7e-07,104930.0,104920.0,0.29411391]
[1737283482398,9.7e-07,104930.0,104920.0,0.44411391]
[1737283482572,0.04588458,104930.0,104920.0,0.44411391]
[1737283483222,9.7e-07,104930.0,104920.0,0.51471524]
[1737283483436,0.04588458,104930.0,104920.0,0.44411391]
[1737283483554,9.7e-07,104930.0,104920.0,0.44411391]
[1737283485114,9.7e-07,104930.0,104920.0,0.37351258]
[1737283485296,9.7e-07,104930.0,104920.0,0.44411391]
[1737283486877,0.04588458,104930.0,104920.0,0.44411391]
[1737283489449,0.04588458,104930.0,104920.0,0.37351258]
[1737283489882,0.09530197,104930.0,104920.0,0.22351258]
[1737283490093,9.7e-07,104930.0,104920.0,0.20051258]
[1737283490560,0.09530197,104930.0,104920.0,0.20051258]
[1737283490786,0.17750197,104930.0,104920.0,0.20051258]
[1737283491070,0.17750197,104930.0,104920.0,0.00596177]
[1737283491245,0.17750197,104930.0,104920.0,0.10127177]
[1737283491568,0.17750197,104930.0,104920.0,0.00596177]
[1737283491769,0.18704651,104930.0,104920.0,0.10127177]
[1737283491963,0.09174551,104930.0,104920.0,0.10127177]
[1737283492152,0.08220097,104930.0,104920.0,0.22351258]
[1737283493436,9.7e-07,104930.0,104920.0,0.22351258]
[1737283493635,0.04588458,104930.0,104920.0,0.29411391]
[1737283494582,9.7e-07,104930.0,104920.0,0.22351258]
[1737283496246,0.09530197,104930.0,104920.0,0.10127177]
[1737283496926,0.09530197,104930.0,104920.0,0.00596177]
[1737283497755,0.12530197,104930.0,104920.0,0.10127177]
[1737283497951,0.03000097,104930.0,104920.0,0.10127177]
[1737283498159,0.03000097,104930.0,104920.0,0.22351258]
[1737283498359,0.03000097,104930.0,104920.0,0.29411391]
[1737283498971,0.03000097,104930.0,104920.0,0.22351258]
[1737283504856,0.12530197,104930.0,104920.0,0.10520258]
[1737283505053,0.12530197,104930.0,104920.0,0.00596177]
[1737283506066,0.22530197,104930.0,104920.0,0.00596177]
[1737283506267,0.30180197,104930.0,104920.0,0.00596177]
[1737283506509,0.35060197,104930.0,104920.0,0.00596177]
[1737283508255,0.35060197,104930.0,104910.0,0.25163558]
[1737283508256,0.3409469,104930.0,104910.0,0.25163558]
[1737283508440,0.19531,104920.0,104910.0,0.15631758]
[1737283508788,0.19531,104920.0,104910.0,0.25163658]
[1737283509444,0.09531,104920.0,104910.0,0.25163658]
[1737283509629,0.5574479,104930.0,104920.0,0.09531]
[1737283510378,0.5574479,104930.0,104910.0,0.63289458]
[1737283510509,0.7480659,104930.0,104910.0,0.63289458]
[1737283510720,0.5574479,104930.0,104920.0,0.09531]
[1737283510923,0.5574479,104930.0,104910.0,0.34694458]
[1737283511130,0.5574479,104930.0,104910.0,0.63289658]
[1737283511471,0.5574479,104930.0,104920.0,0.09531]
[1737283511608,0.5574479,104930.0,104910.0,0.62693281]
[1737283511814,0.5574479,104930.0,104920.0,0.09531]
[1737283512059,0.5574479,104930.0,104910.0,0.43629481]
[1737283512396,0.3668339,104930.0,104920.0,0.09531]
[1737283512549,0.3602339,104930.0,104920.0,0.09531]
[1737283512748,0.1649289,104930.0,104920.0,0.21755081]
[1737283512958,0.07588458,104930.0,104920.0,0.43815214]
[1737283513272,0.04588458,104930.0,104920.0,0.52105214]
[1737283514019,0.04588458,104930.0,104920.0,0.52701429]
[1737283514881,9.7e-07,104930.0,104920.0,0.38305157]
[1737283516600,9.7e-07,104930.0,104920.0,0.23305157]
[1737283517348,9.7e-07,104930.0,104920.0,0.3036529]
[1737283517622,9.7e-07,104930.0,104920.0,0.4536529]
[1737283517761,9.7e-07,104930.0,104920.0,0.38305157]
[1737283518163,9.7e-07,104930.0,104920.0,0.21005157]
[1737283522528,0.07640097,104930.0,104920.0,0.21005157]
[1737283523113,9.7e-07,104930.0,104920.0,0.21005157]
[1737283532077,0.09530197,104930.0,104920.0,0.01550076]
[1737283532251,0.3423033,104930.0,104920.0,0.01550076]
[1737283532486,0.27170197,104930.0,104920.0,0.01550076]
[1737283533715,0.4858168,104930.0,104920.0,0.01550076]
[1737283534767,0.4858168,104930.0,104920.0,0.00596215]
[1737283536752,0.55641813,104930.0,104920.0,0.00596215]
[1737283536959,0.45641813,104930.0,104920.0,0.00596215]
[1737283537187,0.39519829,104930.0,104920.0,0.00596215]
[1737283537601,0.49519829,104930.0,104920.0,0.00596215]
[1737283538446,0.49519829,104930.0,104920.0,0.10127215]
[1737283538651,0.66649016,104930.0,104920.0,0.10127215]
[1737283538853,0.66649016,104930.0,104920.0,0.00596215]
[1737283539267,0.66649016,104930.0,104920.0,0.0155027]
[1737283539478,0.36672939,104930.0,104920.0,0.0155027]
[1737283539902,0.36672939,104930.0,104920.0,0.01536095]
[1737283540447,0.49519829,104930.0,104920.0,0.01536095]
[1737283542544,0.49519829,104930.0,104920.0,0.11067095]
[1737283543560,0.49519829,104930.0,104920.0,0.01536095]
[1737283543897,0.49519829,104930.0,104920.0,0.11067095]
[1737283544104,0.49519829,104930.0,104920.0,0.01536095]
[1737283544306,0.68580229,104930.0,104910.0,0.43629581]
[1737283544637,0.49519829,104930.0,104920.0,0.09531]
[1737283544840,0.22349729,104930.0,104920.0,0.09531]
[1737283545216,0.22349729,104930.0,104920.0,0.27479163]
[1737283545217,0.2141158,104930.0,104920.0,0.27479163]
[1737283545426,0.25999941,104930.0,104920.0,0.57419296]
[1737283545976,0.25999941,104930.0,104920.0,0.50359163]
[1737283546519,0.04588458,104930.0,104920.0,0.50359163]
[1737283549639,9.7e-07,104930.0,104920.0,0.50359163]
[1737283550946,9.7e-07,104930.0,104920.0,0.37709163]
[1737283551822,9.7e-07,104930.0,104920.0,0.22709163]
[1737283552027,9.7e-07,104930.0,104920.0,0.10485082]
[1737283552915,9.7e-07,104930.0,104920.0,0.11081318]
[1737283553548,0.04588458,104930.0,104920.0,0.23305399]
[1737283553751,0.04588458,104930.0,104920.0,0.31185399]
[1737283553954,0.04588458,104930.0,104920.0,0.46185399]
[1737283554181,0.04588458,104930.0,104920.0,0.50955399]
[1737283555431,0.04588458,104930.0,104920.0,0.59492671]
[1737283556236,0.04588458,104930.0,104920.0,0.59582551]
[1737283557158,9.7e-07,104930.0,104920.0,0.66642684]
[1737283557566,9.7e-07,104930.0,104920.0,0.59582551]
[1737283557792,0.04588458,104930.0,104920.0,0.62555931]
[1737283557999,0.04588458,104930.0,104920.0,0.59582551]
[1737283558337,0.04588458,104930.0,104920.0,1.1084533]
[1737283559286,0.04588458,104930.0,104920.0,0.72397497]
[1737283559487,0.04588458,104930.0,104920.0,0.74347817]
[1737283560119,9.7e-07,104930.0,104920.0,0.74347817]
[1737283560307,0.04588458,104930.0,104920.0,0.74347817]
[1737283560861,0.04588458,104930.0,104920.0,0.72397497]
[1737283561286,0.04588458,104930.0,104920.0,0.89484092]
[1737283561668,0.04588458,104930.0,104920.0,0.74534092]
[1737283561669,9.7e-07,104930.0,104920.0,0.74534092]
[1737283562065,9.7e-07,104930.0,104920.0,0.59534092]
[1737283562321,9.7e-07,104930.0,104920.0,0.29632551]
[1737283562670,9.7e-07,104930.0,104920.0,0.3470847]
[1737283562927,0.09530197,104930.0,104920.0,0.1017747]
[1737283563134,0.09530197,104930.0,104920.0,0.1970847]
[1737283563457,9.7e-07,104930.0,104920.0,0.1970847]
[1737283563663,9.7e-07,104930.0,104920.0,0.11171198]
[1737283563872,0.50315297,104940.0,104920.0,0.30233098]
[1737283564054,0.50320265,104940.0,104920.0,0.30233098]
[1737283564757,0.11731065,104940.0,104930.0,0.095301]
[1737283564969,0.20295658,104940.0,104930.0,0.095301]
[1737283565737,4.968e-05,104940.0,104930.0,0.095301]
[1737283565970,4.968e-05,104940.0,104930.0,0.20050417]
[1737283566484,0.04593329,104940.0,104930.0,0.22350417]
[1737283566691,4.968e-05,104940.0,104930.0,0.22350417]
[1737283567612,0.00047768,104940.0,104930.0,0.22350417]
[1737283567817,0.00047768,104940.0,104930.0,0.23304499]
[1737283568361,0.09576968,104940.0,104930.0,0.21004499]
[1737283568604,0.00047768,104940.0,104930.0,0.11080418]
[1737283569246,0.00047768,104940.0,104930.0,0.23304499]
[1737283569812,0.00047768,104940.0,104930.0,0.21004499]
[1737283570015,0.00047768,104940.0,104930.0,0.11080418]
[1737283570241,0.09576968,104940.0,104930.0,0.11080418]
[1737283570394,0.09576968,104940.0,104930.0,0.01550318]
[1737283570872,0.09576968,104940.0,104930.0,0.11080418]
[1737283570999,0.00047768,104940.0,104930.0,0.11080418]
[1737283571196,0.09576968,104940.0,104930.0,0.01550318]
[1737283571406,0.14196968,104940.0,104930.0,0.01550318]
[1737283571605,0.53807101,104940.0,104930.0,0.01550318]
[1737283571828,0.36746968,104940.0,104930.0,0.01550318]
[1737283572201,0.46746968,104940.0,104930.0,0.01550318]
[1737283572832,0.46746968,104940.0,104930.0,0.00596236]
[1737283573031,0.55311561,104940.0,104930.0,0.00596236]
[1737283573475,0.62371694,104940.0,104930.0,0.00596236]
[1737283573821,0.52371694,104940.0,104930.0,0.00596236]
[1737283574766,0.82347771,104940.0,104930.0,0.00596236]
[1737283574966,0.92271852,104940.0,104930.0,0.00596236]
[1737283575170,1.02927852,104940.0,104930.0,0.00596236]
[1737283575369,0.92927852,104940.0,104930.0,0.00596236]
[1737283575931,0.195301,104930.0,104920.0,0.0008988]
[1737283576822,0.270801,104930.0,104920.0,0.0008988]
[1737283577072,0.270801,104930.0,104920.0,0.00686161]
[1737283577348,0.34140233,104930.0,104920.0,0.00686161]
[1737283577619,0.32704826,104930.0,104920.0,0.00686161]
[1737283578354,0.30594973,104930.0,104920.0,0.00686161]
[1737283578599,0.6057105,104930.0,104920.0,0.00686161]
[1737283578838,0.6057105,104930.0,104920.0,0.0008988]
[1737283579087,0.63510917,104930.0,104920.0,0.0008988]
[1737283579567,0.3353484,104930.0,104920.0,0.0008988]
[1737283580421,0.16114593,104930.0,104920.0,0.0962088]
[1737283580627,0.26114593,104930.0,104920.0,0.0962088]
[1737283580829,0.08564593,104930.0,104920.0,0.0962088]
[1737283581032,0.5418345,104940.0,104930.0,0.095301]
[1737283581254,0.6871265,104940.0,104930.0,0.095301]
[1737283581381,0.43208438,104940.0,104930.0,0.095301]
[1737283581580,0.38588438,104940.0,104930.0,0.095301]
[1737283581794,0.38588438,104940.0,104930.0,0.19454181]
[1737283582110,0.08612361,104940.0,104930.0,0.19454181]
[1737283582714,0.08612361,104940.0,104930.0,0.20050486]
[1737283583062,0.00047768,104940.0,104930.0,0.20050486]
[1737283585168,0.17106968,104940.0,104930.0,0.10126405]
[1737283585528,0.38897101,104940.0,104930.0,0.00596305]
[1737283585783,0.53897101,104940.0,104930.0,0.01550259]
[1737283585962,0.46836968,104940.0,104930.0,0.01550259]
[1737283586525,0.21836968,104940.0,104930.0,0.11080359]
[1737283586724,0.09576968,104940.0,104930.0,0.11080359]
[1737283587056,0.24576968,104940.0,104930.0,0.10126405]
[1737283587257,0.00047768,104940.0,104930.0,0.10126405]
[1737283589560,0.00047768,104940.0,104930.0,0.11080359]
[1737283589814,0.00047768,104940.0,104930.0,0.2100444]
[1737283590009,0.00047768,104940.0,104930.0,0.2330444]
[1737283595268,0.00047768,104940.0,104930.0,0.3085444]
[1737283595724,0.04636129,104940.0,104930.0,0.52914573]
[1737283595936,0.00047768,104940.0,104930.0,0.67081913]
[1737283596227,6.8e-07,104940.0,104930.0,0.90465626]